fUSD/lending_fUSD_20260622
["ID","MTS","AMOUNT","RATE_DAILY","PERIOD"]
[426082351,1782139857000,-709.11,0.00029155,2]
[426082348,1782139857000,-550.0,0.00029137,2]
[426082354,1782139857000,-785.0,0.00029248,2]
[426082355,1782139857000,-679.98,0.000293,7]
[426082356,1782139857000,-1000.0,0.00029315,2]
[426082357,1782139857000,-1026.81,0.00029327,30]
[426082358,1782139857000,-501.0,0.00029375,11]
[426082363,1782139857000,-291.96,0.00029464,2]
[426082362,1782139857000,-478.567931,0.00029448,7]
[426082359,1782139857000,-2005.0,0.000294,2]
[426082360,1782139857000,-466.953868,0.00029432,7]
[426082361,1782139857000,-1026.81,0.00029436,30]
[426082364,1782139857000,-200.0,0.00029494,2]
[426082317,1782139857000,-550.0,0.00029014,2]
[426082343,1782139857000,-550.0,0.00029137,2]
[426082337,1782139857000,-500.0,0.000291,2]
[426082352,1782139857000,-620.45,0.000292,7]
[426082335,1782139857000,-500.0,0.000291,2]
[426082312,1782139857000,-550.0,0.00029014,2]
[426082338,1782139857000,-500.01,0.000291,2]
[426082321,1782139857000,-550.0,0.00029014,2]
[426082319,1782139857000,-550.0,0.00029014,2]
[426082325,1782139857000,-550.0,0.00029014,2]
[426082323,1782139857000,-550.0,0.00029014,2]
[426082322,1782139857000,-550.0,0.00029014,2]
[426082320,1782139857000,-550.0,0.00029014,2]
[426082324,1782139857000,-550.0,0.00029014,2]
[426082329,1782139857000,-550.0,0.00029014,2]
[426082326,1782139857000,-550.0,0.00029014,2]
[426082330,1782139857000,-550.0,0.00029014,2]
[426082336,1782139857000,-500.0,0.000291,2]
[426082328,1782139857000,-550.0,0.00029014,2]
[426082332,1782139857000,-550.0,0.00029014,2]
[426082333,1782139857000,-640.0,0.00029014,2]
[426082340,1782139857000,-250.0,0.0002913,12]
[426082341,1782139857000,-329.8884998,0.0002913,5]
[426082342,1782139857000,-550.0,0.00029137,2]
[426082334,1782139857000,-1000.0,0.00029041,2]
[426082331,1782139857000,-550.0,0.00029014,2]
[426082327,1782139857000,-550.0,0.00029014,2]
[426082339,1782139857000,-1026.81,0.00029109,30]
[426082395,1782139858000,-588.53,0.0002973,10]
[426082393,1782139858000,-937.75283355,0.00029729,2]
[426082396,1782139858000,-28318.98,0.0002973,10]
[426082394,1782139858000,-940.15898484,0.00029729,2]
[426082389,1782139858000,-350.0,0.00029653,14]
[426082390,1782139858000,-1026.81,0.00029655,30]
[426082398,1782139858000,-915.38915019,0.00029737,2]
[426082392,1782139858000,-1664.17,0.00029722,7]
[426082399,1782139858000,-1026.81,0.00029764,30]
[426082397,1782139858000,-267.018848,0.00029731,28]
[426082401,1782139858000,-187259.87,0.000298,2]
[426082412,1782139858000,-154.0,0.00029874,30]
[426082402,1782139858000,-12131.59,0.000298,2]
[426082408,1782139858000,-170.0,0.00029874,30]
[426082404,1782139858000,-3145.3893723,0.000298,2]
[426082407,1782139858000,-1026.81,0.00029873,30]
[426082403,1782139858000,-591808.19129915,0.000298,2]
[426082409,1782139858000,-173.0,0.00029874,30]
[426082406,1782139858000,-228.3499009,0.00029867,120]
[426082405,1782139858000,-8586.76334058,0.000298,10]
[426082410,1782139858000,-571.0,0.00029874,30]
[426082400,1782139858000,-2317.66170699,0.00029795,2]
[426082411,1782139858000,-400.0,0.00029874,30]
[426082391,1782139858000,-1043.5734096,0.00029677,2]
[426082366,1782139858000,-5554.1514494,0.000295,2]
[426082386,1782139858000,-1112.45252612,0.00029602,2]
[426082414,1782139858000,-25000.0,0.00029879,3]
[426082375,1782139858000,-1088.2310222,0.00029575,2]
[426082365,1782139858000,-364.68,0.000295,7]
[426082373,1782139858000,-1026.81,0.00029545,30]
[426082374,1782139858000,-1186.14579276,0.00029575,2]
[426082367,1782139858000,-647.38,0.00029506,2]
[426082368,1782139858000,-483.76,0.00029506,2]
[426082369,1782139858000,-482.43,0.00029529,2]
[426082371,1782139858000,-643.6,0.00029531,2]
[426082370,1782139858000,-3500.0,0.0002953,29]
[426082388,1782139858000,-2110.0,0.00029636,2]
[426082372,1782139858000,-396.29,0.00029531,2]
[426082377,1782139858000,-1105.9015901,0.00029575,2]
[426082387,1782139858000,-3500.0,0.0002963,17]
[426082380,1782139858000,-1192.08596669,0.00029575,2]
[426082379,1782139858000,-1027.24606932,0.00029575,2]
[426082381,1782139858000,-709.11,0.00029578,2]
[426082378,1782139858000,-1160.59648102,0.00029575,2]
[426082384,1782139858000,-497.68,0.00029589,2]
[426082382,1782139858000,-785.0,0.0002958,2]
[426082385,1782139858000,-1042.16202224,0.00029602,2]
[426082383,1782139858000,-2317.66170699,0.00029589,2]
[426082376,1782139858000,-1222.06567513,0.00029575,2]
[426082420,1782139858000,-80627.24832988,0.000299,2]
[426082464,1782139858000,-1500.0,0.0003,2]
[426082415,1782139858000,-25000.0,0.00029879,3]
[426082445,1782139858000,-166.0,0.00029912,30]
[426082440,1782139858000,-188.0,0.00029911,30]
[426082444,1782139858000,-156.0,0.00029911,30]
[426082447,1782139858000,-2475.39,0.00029912,7]
[426082446,1782139858000,-869.0,0.00029912,30]
[426082449,1782139858000,-389.53952,0.0002993,2]
[426082451,1782139858000,-1026.81,0.00029982,30]
[426082453,1782139858000,-176.49520586,0.00029999,7]
[426082452,1782139858000,-242.30598697,0.0002999,2]
[426082454,1782139858000,-50000.0,0.0003,12]
[426082441,1782139858000,-159.0,0.00029911,30]
[426082456,1782139858000,-1500.0,0.0003,2]
[426082458,1782139858000,-1500.0,0.0003,2]
[426082457,1782139858000,-1500.0,0.0003,2]
[426082455,1782139858000,-1500.0,0.0003,2]
[426082461,1782139858000,-1500.0,0.0003,2]
[426082462,1782139858000,-1500.0,0.0003,2]
[426082460,1782139858000,-1500.0,0.0003,2]
[426082466,1782139858000,-3374.0007897,0.0003,2]
[426082465,1782139858000,-956.68,0.0003,2]
[426082463,1782139858000,-1500.0,0.0003,2]
[426082413,1782139858000,-25000.0,0.00029879,3]
[426082450,1782139858000,-525.0,0.00029931,5]
[426082442,1782139858000,-1170.0,0.00029911,30]
[426082459,1782139858000,-1500.0,0.0003,2]
[426082448,1782139858000,-785.0,0.00029912,2]
[426082443,1782139858000,-1610.0,0.00029911,30]
[426082418,1782139858000,-8355.35813692,0.00029879,3]
[426082416,1782139858000,-25000.0,0.00029879,3]
[426082419,1782139858000,-389.53951,0.0002988,2]
[426082417,1782139858000,-7277.92155493,0.00029879,3]
[426082423,1782139858000,-19202.10438497,0.000299,2]
[426082424,1782139858000,-19202.10438497,0.000299,2]
[426082426,1782139858000,-19202.10438497,0.000299,2]
[426082428,1782139858000,-19202.10438497,0.000299,2]
[426082427,1782139858000,-19202.10438497,0.000299,2]
[426082422,1782139858000,-19202.10438497,0.000299,2]
[426082421,1782139858000,-679.98,0.000299,7]
[426082425,1782139858000,-19202.10438497,0.000299,2]
[426082429,1782139858000,-19202.10438497,0.000299,2]
[426082438,1782139858000,-19202.10438497,0.000299,2]
[426082436,1782139858000,-19202.10438497,0.000299,2]
[426082439,1782139858000,-227.0,0.00029911,30]
[426082432,1782139858000,-19202.10438497,0.000299,2]
[426082437,1782139858000,-19202.10438497,0.000299,2]
[426082434,1782139858000,-19202.10438497,0.000299,2]
[426082435,1782139858000,-19202.10438497,0.000299,2]
[426082433,1782139858000,-1100.0,0.000299,10]
[426082430,1782139858000,-19202.10438497,0.000299,2]
[426082431,1782139858000,-19202.10438497,0.000299,2]
[426082493,1782139859000,-166.59090503,0.0003,2]
[426082487,1782139859000,-20318.99645401,0.0003,2]
[426082491,1782139859000,-1858.2147611,0.0003,2]
[426082492,1782139859000,-1000.0,0.0003,2]
[426082498,1782139859000,-2499.99,0.0003,2]
[426082496,1782139859000,-22499.99,0.0003,2]
[426082489,1782139859000,-583405.24508716,0.0003,2]
[426082499,1782139859000,-12500.0,0.0003,2]
[426082494,1782139859000,-262222.20306313,0.0003,7]
[426082497,1782139859000,-24999.99,0.0003,2]
[426082490,1782139859000,-1128.57312513,0.0003,2]
[426082504,1782139859000,-10000.0,0.0003,2]
[426082502,1782139859000,-2068.54,0.0003,2]
[426082486,1782139859000,-10215.41508726,0.0003,5]
[426082501,1782139859000,-2499.99,0.0003,2]
[426082495,1782139859000,-509.347795,0.0003,120]
[426082488,1782139859000,-1116.40763156,0.0003,2]
[426082473,1782139859000,-150.0,0.0003,2]
[426082485,1782139859000,-249.16512617,0.0003,2]
[426082503,1782139859000,-12499.99,0.0003,2]
[426082467,1782139859000,-150.0,0.0003,2]
[426082468,1782139859000,-150.0,0.0003,2]
[426082469,1782139859000,-150.0,0.0003,2]
[426082475,1782139859000,-264.05,0.0003,2]
[426082471,1782139859000,-150.0,0.0003,2]
[426082470,1782139859000,-150.0,0.0003,2]
[426082483,1782139859000,-10061.75922834,0.0003,5]
[426082472,1782139859000,-150.0,0.0003,2]
[426082476,1782139859000,-2317.66170699,0.0003,2]
[426082480,1782139859000,-63000.18462278,0.0003,2]
[426082477,1782139859000,-364.68,0.0003,7]
[426082482,1782139859000,-77156.00163332,0.0003,5]
[426082478,1782139859000,-16374.0,0.0003,30]
[426082481,1782139859000,-108788.39151993,0.0003,5]
[426082479,1782139859000,-17200.97408321,0.0003,2]
[426082474,1782139859000,-150.0,0.0003,2]
[426082500,1782139859000,-24999.99,0.0003,2]
[426082484,1782139859000,-275.74321645,0.0003,2]
[426082509,1782139859000,-10000.0,0.0003,2]
[426082526,1782139859000,-22499.99,0.0003,2]
[426082527,1782139859000,-25000.0,0.0003,2]
[426082530,1782139859000,-55073.0,0.0003,3]
[426082528,1782139859000,-24999.99,0.0003,2]
[426082531,1782139859000,-24999.99,0.0003,2]
[426082532,1782139859000,-2500.0,0.0003,2]
[426082533,1782139859000,-12499.99,0.0003,2]
[426082525,1782139859000,-12134.61,0.0003,2]
[426082534,1782139859000,-14999.99,0.0003,2]
[426082535,1782139859000,-22500.0,0.0003,2]
[426082542,1782139859000,-200.0,0.0003,2]
[426082539,1782139859000,-99999.0,0.0003,3]
[426082536,1782139859000,-86000.0,0.0003,7]
[426082537,1782139859000,-709.13592486,0.0003,2]
[426082538,1782139859000,-12500.0,0.0003,2]
[426082507,1782139859000,-2500.0,0.0003,2]
[426082540,1782139859000,-99899.0,0.0003,4]
[426082524,1782139859000,-2499.99,0.0003,2]
[426082529,1782139859000,-2499.99,0.0003,2]
[426082523,1782139859000,-12499.99,0.0003,2]
[426082506,1782139859000,-25000.0,0.0003,2]
[426082508,1782139859000,-12499.99,0.0003,2]
[426082541,1782139859000,-83873.4078566,0.0003,5]
[426082510,1782139859000,-22500.0,0.0003,2]
[426082512,1782139859000,-2500.0,0.0003,2]
[426082511,1782139859000,-24999.96,0.0003,2]
[426082513,1782139859000,-25000.0,0.0003,2]
[426082516,1782139859000,-150.0,0.0003,2]
[426082505,1782139859000,-22500.0,0.0003,2]
[426082515,1782139859000,-708.92,0.0003,2]
[426082520,1782139859000,-12499.99,0.0003,2]
[426082521,1782139859000,-22499.99,0.0003,2]
[426082514,1782139859000,-12499.99,0.0003,2]
[426082518,1782139859000,-9999.99,0.0003,2]
[426082519,1782139859000,-11045.0,0.0003,2]
[426082522,1782139859000,-719.06,0.0003,2]
[426082517,1782139859000,-164.9,0.0003,2]
[426082555,1782139860000,-12412.81942823,0.0003,2]
[426082553,1782139860000,-2500.0,0.0003,2]
[426082551,1782139860000,-25000.0,0.0003,2]
[426082552,1782139860000,-12500.0,0.0003,2]
[426082547,1782139860000,-15000.0,0.0003,2]
[426082546,1782139860000,-12499.99,0.0003,2]
[426082548,1782139860000,-9999.99,0.0003,2]
[426082549,1782139860000,-22500.0,0.0003,2]
[426082543,1782139860000,-200.0,0.0003,2]
[426082544,1782139860000,-12499.99,0.0003,2]
[426082554,1782139860000,-501.0,0.0003,11]
[426082550,1782139860000,-12500.0,0.0003,2]
[426082556,1782139860000,-446.26987052,0.0003,2]
[426082545,1782139860000,-12499.99,0.0003,2]
[426082561,1782139860000,-958.33968344,0.0003,2]
[426082568,1782139860000,-18345.66031656,0.0003,2]
[426082569,1782139860000,-25000.0,0.0003,2]
[426082570,1782139860000,-12500.0,0.0003,2]
[426082558,1782139860000,-151.0,0.00016438,2]
[426082567,1782139860000,-221.040314,0.00024658,2]
[426082566,1782139860000,-151.0,0.00024658,2]
[426082564,1782139860000,-151.0,0.00016438,2]
[426082563,1782139860000,-198.879535,0.00010898,2]
[426082562,1782139860000,-3196.0,0.0003,2]
[426082557,1782139860000,-322.25365899,0.0003,2]
[426082559,1782139860000,-1818.65704226,0.0003,2]
[426082560,1782139860000,-2475.82,0.0003,2]
[426082565,1782139860000,-151.0,0.00024658,2]
[426082612,1782139861000,-1546.09,0.000301,3]
[426082611,1782139861000,-1546.095,0.000301,2]
[426082610,1782139861000,-1546.09,0.000301,5]
[426082603,1782139861000,-500.0,0.00030082,14]
[426082605,1782139861000,-500.0,0.00030082,14]
[426082604,1782139861000,-500.0,0.00030082,14]
[426082607,1782139861000,-239.0,0.00030082,14]
[426082608,1782139861000,-1026.81,0.00030091,30]
[426082602,1782139861000,-500.0,0.00030082,14]
[426082601,1782139861000,-500.0,0.00030082,14]
[426082613,1782139861000,-1546.095,0.000301,3]
[426082606,1782139861000,-500.0,0.00030082,14]
[426082614,1782139861000,-2387.0694214,0.000301,2]
[426082619,1782139861000,-22500.0,0.00030125,2]
[426082620,1782139861000,-22499.96,0.00030125,2]
[426082616,1782139861000,-15000.0,0.000301,2]
[426082617,1782139861000,-15000.0,0.000301,2]
[426082618,1782139861000,-22500.0,0.00030125,2]
[426082609,1782139861000,-1546.095,0.000301,3]
[426082621,1782139861000,-22500.0,0.00030125,2]
[426082623,1782139861000,-22499.98,0.00030125,2]
[426082625,1782139861000,-22500.0,0.00030125,2]
[426082624,1782139861000,-12500.0,0.00030125,2]
[426082622,1782139861000,-12499.99,0.00030125,2]
[426082628,1782139861000,-5043.49231616,0.0003013,2]
[426082632,1782139861000,-850.0,0.0003013,2]
[426082630,1782139861000,-30114.9925889,0.0003013,2]
[426082615,1782139861000,-14999.98,0.000301,2]
[426082600,1782139861000,-500.0,0.00030082,14]
[426082593,1782139861000,-500.0,0.00030082,14]
[426082598,1782139861000,-500.0,0.00030082,14]
[426082571,1782139861000,-12500.0,0.0003,2]
[426082572,1782139861000,-2500.0,0.0003,2]
[426082574,1782139861000,-15000.0,0.0003,2]
[426082584,1782139861000,-749.0,0.00030001,2]
[426082576,1782139861000,-22500.0,0.0003,2]
[426082575,1782139861000,-10000.0,0.0003,2]
[426082573,1782139861000,-2500.0,0.0003,2]
[426082583,1782139861000,-749.0,0.00030001,2]
[426082578,1782139861000,-1392.74129612,0.00030001,2]
[426082582,1782139861000,-1392.74129612,0.00030001,2]
[426082581,1782139861000,-749.0,0.00030001,2]
[426082577,1782139861000,-1531.334921,0.0003,2]
[426082626,1782139861000,-243.07919439,0.0003013,30]
[426082580,1782139861000,-749.0,0.00030001,2]
[426082579,1782139861000,-749.0,0.00030001,2]
[426082595,1782139861000,-500.0,0.00030082,14]
[426082585,1782139861000,-419.465089,0.00030043,7]
[426082586,1782139861000,-1000.0,0.00030082,2]
[426082587,1782139861000,-1188.51,0.00030082,2]
[426082588,1782139861000,-1459.0,0.00030082,2]
[426082590,1782139861000,-972.67,0.00030082,2]
[426082589,1782139861000,-1459.0,0.00030082,2]
[426082591,1782139861000,-500.0,0.00030082,14]
[426082594,1782139861000,-500.0,0.00030082,14]
[426082592,1782139861000,-500.0,0.00030082,14]
[426082596,1782139861000,-500.0,0.00030082,14]
[426082597,1782139861000,-500.0,0.00030082,14]
[426082599,1782139861000,-500.0,0.00030082,14]
[426082629,1782139861000,-1923.61171422,0.0003013,2]
[426082683,1782139861000,-500.0,0.00030136,120]
[426082631,1782139861000,-99036.75483933,0.0003013,2]
[426082660,1782139861000,-536.02411991,0.00030135,120]
[426082666,1782139861000,-151.0,0.00030136,2]
[426082663,1782139861000,-536.02411991,0.00030135,120]
[426082667,1782139861000,-151.0,0.00030136,2]
[426082665,1782139861000,-151.0,0.00030136,2]
[426082668,1782139861000,-151.0,0.00030136,2]
[426082664,1782139861000,-693.05098116,0.00030135,2]
[426082672,1782139861000,-500.0,0.00030136,120]
[426082684,1782139861000,-505.26110415,0.00030136,120]
[426082678,1782139861000,-500.0,0.00030136,120]
[426082674,1782139861000,-500.0,0.00030136,120]
[426082673,1782139861000,-500.0,0.00030136,120]
[426082676,1782139861000,-500.0,0.00030136,120]
[426082675,1782139861000,-500.0,0.00030136,120]
[426082677,1782139861000,-500.0,0.00030136,120]
[426082681,1782139861000,-500.0,0.00030136,120]
[426082682,1782139861000,-500.0,0.00030136,120]
[426082680,1782139861000,-500.0,0.00030136,120]
[426082679,1782139861000,-167.63447998,0.00030136,120]
[426082686,1782139861000,-500.0,0.00030136,120]
[426082685,1782139861000,-500.0,0.00030136,120]
[426082687,1782139861000,-500.0,0.00030136,120]
[426082688,1782139861000,-500.0,0.00030136,120]
[426082690,1782139861000,-500.0,0.00030136,120]
[426082689,1782139861000,-500.0,0.00030136,120]
[426082627,1782139861000,-31042.99585625,0.0003013,2]
[426082692,1782139861000,-500.59589596,0.00030136,3]
[426082669,1782139861000,-500.0,0.00030136,120]
[426082661,1782139861000,-536.02411991,0.00030135,120]
[426082691,1782139861000,-170.8947701,0.00030136,120]
[426082662,1782139861000,-536.02411991,0.00030135,120]
[426082671,1782139861000,-500.0,0.00030136,120]
[426082638,1782139861000,-2100.0,0.00030135,120]
[426082643,1782139861000,-2100.0,0.00030135,120]
[426082635,1782139861000,-2100.0,0.00030135,120]
[426082645,1782139861000,-2100.0,0.00030135,120]
[426082636,1782139861000,-2100.0,0.00030135,120]
[426082637,1782139861000,-2100.0,0.00030135,120]
[426082633,1782139861000,-2100.0,0.00030135,120]
[426082642,1782139861000,-2100.0,0.00030135,120]
[426082640,1782139861000,-2100.0,0.00030135,120]
[426082641,1782139861000,-2100.0,0.00030135,120]
[426082639,1782139861000,-2100.0,0.00030135,120]
[426082644,1782139861000,-2100.0,0.00030135,120]
[426082646,1782139861000,-2100.0,0.00030135,120]
[426082634,1782139861000,-2100.0,0.00030135,120]
[426082650,1782139861000,-210.34481748,0.00030135,25]
[426082670,1782139861000,-500.0,0.00030136,120]
[426082658,1782139861000,-536.02411991,0.00030135,120]
[426082659,1782139861000,-536.02411991,0.00030135,120]
[426082656,1782139861000,-536.02411992,0.00030135,120]
[426082648,1782139861000,-2100.0,0.00030135,120]
[426082655,1782139861000,-536.02411992,0.00030135,120]
[426082651,1782139861000,-151.5,0.00030135,7]
[426082653,1782139861000,-536.02411992,0.00030135,120]
[426082647,1782139861000,-2100.0,0.00030135,120]
[426082657,1782139861000,-536.02411992,0.00030135,120]
[426082652,1782139861000,-536.02411992,0.00030135,120]
[426082654,1782139861000,-536.02411992,0.00030135,120]
[426082649,1782139861000,-732.228,0.00030135,25]
[426082732,1782139862000,-500.0,0.00030136,120]
[426082734,1782139862000,-500.0,0.00030136,120]
[426082733,1782139862000,-500.0,0.00030136,120]
[426082725,1782139862000,-500.0,0.00030136,120]
[426082730,1782139862000,-500.0,0.00030136,120]
[426082729,1782139862000,-500.0,0.00030136,120]
[426082726,1782139862000,-500.0,0.00030136,120]
[426082727,1782139862000,-500.0,0.00030136,120]
[426082724,1782139862000,-500.0,0.00030136,120]
[426082728,1782139862000,-500.0,0.00030136,120]
[426082731,1782139862000,-500.0,0.00030136,120]
[426082739,1782139862000,-500.0,0.00030136,120]
[426082741,1782139862000,-500.0,0.00030136,120]
[426082736,1782139862000,-500.0,0.00030136,120]
[426082737,1782139862000,-500.0,0.00030136,120]
[426082735,1782139862000,-391.59833964,0.00030136,120]
[426082740,1782139862000,-500.0,0.00030136,120]
[426082746,1782139862000,-500.0,0.00030136,120]
[426082742,1782139862000,-500.0,0.00030136,120]
[426082744,1782139862000,-501.30646369,0.00030136,120]
[426082754,1782139862000,-2651.7695,0.00030136,120]
[426082743,1782139862000,-500.0,0.00030136,120]
[426082753,1782139862000,-2651.7695,0.00030136,120]
[426082745,1782139862000,-500.0,0.00030136,120]
[426082723,1782139862000,-500.0,0.00030136,120]
[426082738,1782139862000,-500.0,0.00030136,120]
[426082721,1782139862000,-194.72434698,0.00030136,120]
[426082708,1782139862000,-500.0,0.00030136,120]
[426082722,1782139862000,-500.0,0.00030136,120]
[426082696,1782139862000,-500.0,0.00030136,120]
[426082694,1782139862000,-500.0,0.00030136,120]
[426082693,1782139862000,-504.80243469,0.00030136,120]
[426082695,1782139862000,-500.0,0.00030136,120]
[426082697,1782139862000,-500.0,0.00030136,120]
[426082701,1782139862000,-573.46235251,0.00030136,120]
[426082700,1782139862000,-500.0,0.00030136,120]
[426082752,1782139862000,-500.0,0.00030136,120]
[426082702,1782139862000,-500.0,0.00030136,120]
[426082698,1782139862000,-500.0,0.00030136,120]
[426082707,1782139862000,-503.4410674,0.00030136,120]
[426082705,1782139862000,-500.0,0.00030136,120]
[426082720,1782139862000,-500.0,0.00030136,120]
[426082703,1782139862000,-502.71225937,0.00030136,120]
[426082706,1782139862000,-500.0,0.00030136,120]
[426082716,1782139862000,-1000.0,0.00030136,2]
[426082709,1782139862000,-502.173989,0.00030136,120]
[426082718,1782139862000,-229.38366513,0.00030136,120]
[426082717,1782139862000,-501.81883181,0.00030136,120]
[426082719,1782139862000,-500.0,0.00030136,120]
[426082710,1782139862000,-500.0,0.00030136,120]
[426082711,1782139862000,-500.0,0.00030136,120]
[426082712,1782139862000,-500.0,0.00030136,120]
[426082715,1782139862000,-1000.0,0.00030136,2]
[426082714,1782139862000,-500.0,0.00030136,120]
[426082713,1782139862000,-500.0,0.00030136,120]
[426082704,1782139862000,-500.0,0.00030136,120]
[426082751,1782139862000,-500.0,0.00030136,120]
[426082699,1782139862000,-500.0,0.00030136,120]
[426082748,1782139862000,-500.0,0.00030136,120]
[426082785,1782139862000,-500.0,0.00030136,120]
[426082787,1782139862000,-500.0,0.00030136,120]
[426082782,1782139862000,-500.0,0.00030136,120]
[426082788,1782139862000,-500.0,0.00030136,120]
[426082790,1782139862000,-500.0,0.00030136,120]
[426082786,1782139862000,-429.37783636,0.00030136,120]
[426082789,1782139862000,-500.0,0.00030136,120]
[426082792,1782139862000,-153.87550968,0.00030136,120]
[426082803,1782139862000,-500.0,0.00030136,120]
[426082791,1782139862000,-500.0,0.00030136,120]
[426082795,1782139862000,-500.0,0.00030136,120]
[426082802,1782139862000,-523.74,0.00030136,120]
[426082784,1782139862000,-500.0,0.00030136,120]
[426082796,1782139862000,-500.0,0.00030136,120]
[426082800,1782139862000,-500.0,0.00030136,120]
[426082793,1782139862000,-499.7249644,0.00030136,120]
[426082797,1782139862000,-500.0,0.00030136,120]
[426082794,1782139862000,-500.0,0.00030136,120]
[426082799,1782139862000,-604.32,0.00030136,120]
[426082801,1782139862000,-500.0,0.00030136,120]
[426082804,1782139862000,-500.0,0.00030136,120]
[426082806,1782139862000,-500.0,0.00030136,120]
[426082805,1782139862000,-500.0,0.00030136,120]
[426082807,1782139862000,-500.0,0.00030136,120]
[426082808,1782139862000,-517.78254028,0.00030136,120]
[426082809,1782139862000,-500.0,0.00030136,120]
[426082798,1782139862000,-500.0,0.00030136,120]
[426082783,1782139862000,-237.27632112,0.00030136,120]
[426082747,1782139862000,-500.0,0.00030136,120]
[426082780,1782139862000,-500.0,0.00030136,120]
[426082781,1782139862000,-507.47247806,0.00030136,120]
[426082749,1782139862000,-500.0,0.00030136,120]
[426082750,1782139862000,-500.0,0.00030136,120]
[426082766,1782139862000,-581.41461733,0.00030136,120]
[426082767,1782139862000,-581.41461733,0.00030136,120]
[426082755,1782139862000,-500.0,0.00030136,120]
[426082758,1782139862000,-500.0,0.00030136,120]
[426082761,1782139862000,-500.0,0.00030136,120]
[426082757,1782139862000,-500.0,0.00030136,120]
[426082759,1782139862000,-500.0,0.00030136,120]
[426082760,1782139862000,-500.0,0.00030136,120]
[426082764,1782139862000,-581.41461733,0.00030136,120]
[426082762,1782139862000,-500.0,0.00030136,120]
[426082756,1782139862000,-500.0,0.00030136,120]
[426082765,1782139862000,-581.41461733,0.00030136,120]
[426082763,1782139862000,-500.0,0.00030136,120]
[426082778,1782139862000,-500.0,0.00030136,120]
[426082777,1782139862000,-500.0,0.00030136,120]
[426082775,1782139862000,-500.0,0.00030136,120]
[426082771,1782139862000,-561.36872873,0.00030136,120]
[426082772,1782139862000,-500.0,0.00030136,120]
[426082776,1782139862000,-500.0,0.00030136,120]
[426082773,1782139862000,-500.0,0.00030136,120]
[426082770,1782139862000,-172.77551874,0.00030136,120]
[426082768,1782139862000,-581.41461732,0.00030136,120]
[426082779,1782139862000,-500.0,0.00030136,120]
[426082769,1782139862000,-500.0,0.00030136,120]
[426082774,1782139862000,-500.0,0.00030136,120]
[426082832,1782139863000,-297.07173083,0.00030136,120]
[426082840,1782139863000,-500.0,0.00030136,120]
[426082834,1782139863000,-500.0,0.00030136,120]
[426082835,1782139863000,-523.52,0.00030136,30]
[426082836,1782139863000,-500.0,0.00030136,120]
[426082839,1782139863000,-500.0,0.00030136,120]
[426082841,1782139863000,-190.93,0.00030136,120]
[426082843,1782139863000,-500.0,0.00030136,120]
[426082842,1782139863000,-200.0,0.00030136,2]
[426082850,1782139863000,-510.28,0.00030136,120]
[426082852,1782139863000,-500.0,0.00030136,120]
[426082848,1782139863000,-273.85,0.00030136,120]
[426082846,1782139863000,-554.77,0.00030136,120]
[426082847,1782139863000,-500.0,0.00030136,120]